fUSD/lending_fUSD_20250202
["ID","MTS","AMOUNT","RATE_DAILY","PERIOD"]
[351343444,1738523809653,-8903.0,8.712e-05,2]
[351343445,1738523809687,-500.0,8.773e-05,2]
[351343446,1738523809727,-502.01281738,8.773e-05,2]
[351343447,1738523809763,-500.0,8.773e-05,2]
[351343448,1738523809799,-180.44922519,8.773e-05,2]
[351343449,1738523810179,-476.0197845,8.799e-05,2]
[351343450,1738523810216,-286.26720155,8.799e-05,2]
[351343451,1738523810250,-784.04,8.799e-05,2]
[351343452,1738523810284,-150.0,8.799e-05,2]
[351343453,1738523810321,-1008.99495767,8.799e-05,3]
[351343454,1738523812892,-11000.0,8.5e-05,3]
[351343455,1738523812928,-2200.0,8.6e-05,3]
[351343456,1738523815296,-2200.0,8.7e-05,3]
[351343457,1738523815490,-21174.16360155,8.8e-05,2]
[351343458,1738523820431,-31616.084,8.7e-05,2]
[351343459,1738523820473,-176767.832,8.8e-05,2]
[351343461,1738523868121,302.0,0.00023,120]
[351343462,1738523911606,25269.18,0.00011513,7]
[351343463,1738523927469,-300.0,8.699e-05,2]
[351343464,1738523927504,-2500.0,8.7e-05,2]
[351343465,1738523927539,-3879.5507,8.7e-05,2]
[351343466,1738523927576,-500.0,8.7e-05,2]
[351343467,1738523927611,-23900.0,8.764e-05,2]
[351343468,1738523927645,-500.0,8.773e-05,2]
[351343469,1738523927795,-176840.8986,8.8e-05,2]
[351343471,1738523961356,-207.45,8.551e-05,2]
[351343472,1738523961392,-207.45,8.553e-05,2]
[351343473,1738523961426,-207.45,8.555e-05,2]
[351343474,1738523961459,-207.45,8.558e-05,2]
[351343475,1738523961494,-207.45,8.56e-05,2]
[351343476,1738523961530,-207.45,8.562e-05,2]
[351343477,1738523961564,-207.45,8.564e-05,2]
[351343478,1738523961600,-207.45,8.567e-05,2]
[351343479,1738523961634,-207.45,8.569e-05,2]
[351343480,1738523961667,-207.45,8.571e-05,2]
[351343481,1738523961701,-207.45,8.573e-05,2]
[351343482,1738523961735,-207.45,8.576e-05,2]
[351343483,1738523961769,-207.45,8.578e-05,2]
[351343484,1738523961807,-207.45,8.58e-05,2]
[351343485,1738523961846,-207.45,8.582e-05,2]
[351343486,1738523961882,-207.45,8.585e-05,2]
[351343487,1738523961917,-207.45,8.587e-05,2]
[351343488,1738523961954,-207.45,8.589e-05,2]
[351343489,1738523961991,-207.45,8.591e-05,2]
[351343490,1738523962027,-207.45,8.594e-05,2]
[351343491,1738523962062,-5000.0,8.7e-05,2]
[351343492,1738523962099,-502.36011826,8.773e-05,2]
[351343493,1738523962883,-220697.27976348,8.8e-05,2]
[351343494,1738523970287,831.81,0.00016658,30]
[351343495,1738523973038,-175.0,0.000188,31]
[351343496,1738524002901,871.46620682,0.00023,120]
[351343497,1738524003637,1917.40177091,0.00023,120]
[351343498,1738524074979,500.0,0.00022739,120]
[351343499,1738524075154,378.29477452,0.00022739,120]
[351343500,1738524100291,-899.0,0.000188,31]
[351343501,1738524155575,661.81991132,0.00021781,120]
[351343502,1738524155608,500.0,0.00010958,7]
[351343503,1738524155827,500.0,0.00011095,7]
[351343504,1738524157668,500.0,0.00011232,7]
[351343505,1738524157794,500.0,0.00011369,7]
[351343506,1738524158060,500.0,0.00011506,7]
[351343507,1738524159394,500.0,0.00011643,7]
[351343508,1738524159493,500.0,0.0001178,7]
[351343509,1738524159588,500.0,0.00011917,7]
[351343510,1738524159768,500.0,0.00012054,7]
[351343511,1738524159879,500.0,0.00012191,7]
[351343512,1738524160034,457.72498957,0.00012328,7]
[351343513,1738524176434,1127.57,8.138e-05,2]
[351343514,1738524186726,1272.43,8.138e-05,2]
[351343515,1738524186753,2181.19,8.138e-05,2]
[351343516,1738524193593,500.0,0.0002298,120]
[351343517,1738524194318,-301.1,8.348e-05,2]
[351343518,1738524194342,-500.0,8.361e-05,2]
[351343519,1738524194366,-1009.77,8.379e-05,2]
[351343520,1738524194391,-3814.34,8.39e-05,2]
[351343521,1738524194415,-300.0,8.44e-05,2]
[351343522,1738524194439,-197.2,8.441e-05,2]
[351343523,1738524194462,-29741.54,8.441e-05,2]
[351343524,1738524194488,-166.62,8.57e-05,2]
[351343525,1738524194517,-173.21,8.695e-05,2]
[351343526,1738524194543,-688.5184,8.7e-05,2]
[351343527,1738524194567,-9628.5231,8.7e-05,2]
[351343528,1738524194592,-2500.0,8.7e-05,2]
[351343529,1738524194617,-339.5404,8.7e-05,2]
[351343530,1738524194640,-14050.3777,8.7e-05,2]
[351343531,1738524194665,-229518.2604,8.7e-05,2]
[351343532,1738524200298,500.0,0.0002298,120]
[351343533,1738524312160,220.280536,8.178e-05,2]
[351343534,1738524325878,172.3894871,0.00023,120]
[351343535,1738524333087,196.03731391,0.0002,120]
[351343536,1738524339776,233.45,8.183e-05,2]
[351343537,1738524339819,1151.49,8.183e-05,2]
[351343538,1738524344406,897.25,8.219e-05,2]
[351343539,1738524345535,285.10348818,0.00022,120]
[351343542,1738524362534,165.86,8.137e-05,2]
[351343544,1738524365613,2312.88986424,0.00021,120]
[351343545,1738524375622,1596.36,8.219e-05,2]
[351343546,1738524390752,150.0,0.00022643,120]
[351343547,1738524422318,500.72879421,0.00023,120]
[351343548,1738524432317,2382.7,8.219e-05,2]
[351343549,1738524434665,-1500.0,8.449e-05,2]
[351343550,1738524434691,-2500.0,8.478e-05,2]
[351343551,1738524441993,600.0,8e-05,2]
[351343552,1738524444080,571.419464,8.1e-05,2]
[351343553,1738524444104,628.580536,8.1e-05,2]
[351343554,1738524446176,1800.0,8.2e-05,2]
[351343555,1738524451066,150.0,0.00022079,120]
[351343556,1738524473880,383.88540634,0.0002,120]
[351343557,1738524503986,722.6,7.958e-05,2]
[351343558,1738524527146,202.0,0.0002,120]
[351343559,1738524529860,800.0,0.00021,120]
[351343560,1738524530308,468.80542814,0.00022,120]
[351343561,1738524530389,420.85827039,0.00022,120]
[351343562,1738524530530,195.78,0.0002,120]
[351343564,1738524538003,585.41,7.907e-05,2]
[351343565,1738524547144,-2400.0,8.3e-05,3]
[351343566,1738524547166,-3000.0,8.4e-05,3]
[351343567,1738524547186,-4263.49,8.478e-05,2]
[351343568,1738524547208,-600.0,8.5e-05,3]
[351343569,1738524547231,-7344.40698788,8.505e-05,2]
[351343570,1738524547254,-2355.83,8.505e-05,2]
[351343571,1738524547278,-1534.52,8.52e-05,2]
[351343572,1738524547300,-1128.9,8.538e-05,2]
[351343573,1738524547322,-150.0,8.599e-05,2]
[351343574,1738524547344,-56483.04,8.599e-05,2]
[351343575,1738524547366,-22369.8023,8.6e-05,2]
[351343576,1738524547387,-266.4177,8.6e-05,2]
[351343577,1738524547408,-6666.0578,8.6e-05,2]
[351343578,1738524547429,-606.0332,8.6e-05,2]
[351343579,1738524547451,-600.0,8.6e-05,3]
[351343580,1738524547472,-299.99,8.6e-05,2]
[351343581,1738524547493,-1446.99,8.6e-05,2]
[351343582,1738524547517,-22568.0,8.625e-05,2]
[351343583,1738524547538,-89238.5165,8.7e-05,2]
[351343584,1738524547559,-942.3977,8.7e-05,2]
[351343585,1738524547581,-380.5802,8.7e-05,2]
[351343586,1738524547603,-10408.6191,8.7e-05,2]
[351343587,1738524547627,-600.0,8.7e-05,3]
[351343588,1738524547648,-500.0,8.74e-05,2]
[351343589,1738524547671,-500.0,8.773e-05,2]
[351343590,1738524547694,-893.44,8.795e-05,2]
[351343591,1738524547715,-751.37,8.799e-05,2]
[351343592,1738524547742,-4095.65300425,8.8e-05,2]
[351343593,1738524553119,-39750.84639297,8.8e-05,2]
[351343594,1738524556100,-4682.255956,8.8e-05,2]
[351343595,1738524557100,-44165.37568976,8.8e-05,2]
[351343596,1738524559142,-607.94034627,8.6e-05,2]
[351343597,1738524559167,-5569.33917612,8.8e-05,2]
[351343598,1738524560301,-28234.70522044,8.8e-05,2]
[351343599,1738524561099,-43061.56806319,8.8e-05,2]
[351343600,1738524564138,-2638.9788,8.6e-05,2]
[351343601,1738524564165,-21424.65081522,8.8e-05,2]
[351343602,1738524567120,-356042.68710264,8.8e-05,2]
[351343603,1738524570738,150.0,0.00021879,120]
[351343604,1738524573139,-215.0377,8.6e-05,2]
[351343605,1738524573167,-78105.23506748,8.8e-05,2]
[351343606,1738524574149,-120981.91801408,8.8e-05,2]
[351343608,1738524630741,150.0,0.00022437,120]
[351343622,1738524632024,-200.0,8.627e-05,2]
[351343623,1738524632033,-2000.0,8.634e-05,2]
[351343624,1738524632043,-500.0,8.773e-05,2]
[351343625,1738524632052,-300.0,8.799e-05,2]
[351343626,1738524632061,-150.0,8.799e-05,2]
[351343627,1738524632070,-78505.92021155,8.8e-05,2]
[351343628,1738524632147,-904.1089875,8.8e-05,2]
[351343629,1738524632159,-1153.42657498,8.8e-05,2]
[351343630,1738524632171,-2742.79,8.8e-05,2]
[351343631,1738524632260,-378435.60070243,8.8e-05,2]
[351343632,1738524632435,-391.80497421,8.8e-05,2]
[351343633,1738524632495,-3773.31525857,8.8e-05,2]
[351343634,1738524632507,-25648.80203258,8.8e-05,2]
[351343635,1738524632519,-1106.38724,8.8e-05,2]
[351343636,1738524632532,-6173.39,8.8e-05,2]
[351343640,1738524632599,-340.97585375,8.8e-05,2]
[351343642,1738524632620,-230537.67999999,8.8e-05,2]
[351344181,1738524638735,-392.83424415,8.8e-05,2]
[351344184,1738524638747,-279342.79541045,8.8e-05,2]
[351344186,1738524638759,-525671.89830453,8.8e-05,2]
[351344188,1738524638771,-433.83296858,8.8e-05,2]
[351344204,1738524638921,-3153.89112624,8.8e-05,2]
[351344214,1738524639023,-1163.4642831,8.8e-05,2]
[351344217,1738524639035,-25457756.23065558,8.8e-05,2]
[351344219,1738524639044,-8887993.24174948,8.8e-05,2]
[351344221,1738524639054,-4456434.33802264,8.8e-05,2]
[351344225,1738524639084,-3572.04,8.8e-05,2]
[351344227,1738524639096,-39613.37795646,8.8e-05,2]
[351344367,1738524640498,-88735.66523464,8.8e-05,2]
[351344370,1738524640515,-2256.51022036,8.8e-05,2]
[351344372,1738524640527,-733.70962729,8.8e-05,2]
[351344374,1738524640539,-11807.5801047,8.8e-05,2]
[351344377,1738524640550,-367.35250765,8.8e-05,2]
[351344379,1738524640562,-395.35653202,8.8e-05,2]
[351344381,1738524640573,-23382.3793901,8.8e-05,2]
[351344387,1738524640626,-319.61822167,8.8e-05,2]
[351344389,1738524640641,-636.40000089,8.8e-05,2]
[351344391,1738524640653,-1067.39875399,8.8e-05,2]
[351344394,1738524640664,-387.72733961,8.8e-05,2]
[351344396,1738524640676,-4905.37844259,8.8e-05,2]
[351344402,1738524640726,-3083.0,8.8e-05,2]
[351344418,1738524640872,-24470.88368129,8.8e-05,2]
[351344421,1738524641012,-393.17045992,8.8e-05,2]
[351344422,1738524641024,-18918.55938786,8.8e-05,2]
[351344423,1738524641036,-591.91356909,8.8e-05,2]
[351344426,1738524641047,-581.24,8.8e-05,2]
[351344430,1738524641079,-330.294,8.8e-05,2]
[351344596,1738524642892,-327.48,8.651e-05,2]
[351344598,1738524642903,-568.35940424,8.8e-05,2]
[351344614,1738524643013,-762.80310572,8.8e-05,2]
[351344616,1738524643025,-1652.5,8.8e-05,2]
[351344619,1738524643037,-337.6708964,8.8e-05,2]
[351344625,1738524643095,-1100.59114327,8.8e-05,2]
[351344738,1738524644317,-5632.25,8.8e-05,2]
[351344778,1738524644794,-3020.0,8.8e-05,2]
[351344779,1738524644814,-1997931.71008601,8.8e-05,2]
[351344780,1738524644869,-815.23814661,8.8e-05,2]
[351344827,1738524645952,-263.86774805,8.8e-05,2]
[351344829,1738524645965,-327.52493878,8.8e-05,2]
[351344831,1738524645978,-463.78619985,8.8e-05,2]
[351344841,1738524646068,-996.19707999,8.8e-05,2]
[351344848,1738524646130,-1665.7916344,8.8e-05,2]
[351344850,1738524646142,-307.21569413,8.8e-05,2]
[351344852,1738524646153,-308676.51678201,8.8e-05,2]
[351344859,1738524646213,-554.1719204,8.8e-05,2]
[351344862,1738524646229,-1551.87957131,8.8e-05,2]
[351344876,1738524646363,-10265.0,8.8e-05,2]
[351344878,1738524646376,-1160.0,8.8e-05,2]
[351344883,1738524646414,-1273.87222572,8.8e-05,2]
[351344919,1738524750745,150.0,0.0002147,120]
[351344920,1738524794416,500.0,0.00022953,120]
[351344921,1738524801516,500.0,0.00022953,120]
[351344922,1738524806111,1000.0,8.219e-05,2]
[351344923,1738524819865,200.0,0.00022953,120]
[351344924,1738524870744,150.0,0.00022271,120]
[351344925,1738524875633,300.0,8.013e-05,2]
[351344926,1738524921038,166.08,8.211e-05,2]
[351344927,1738524930952,150.0,0.0002112,120]
[351344928,1738524960866,254.72,7.911e-05,2]
[351344933,1738525031580,4542.609464,7.818e-05,2]
[351344934,1738525031602,10000.0,7.818e-05,2]
[351344935,1738525031624,9357.390536,7.818e-05,2]
[351344936,1738525050805,150.0,0.00022129,120]
[351344937,1738525054880,790.21,0.00016658,30]
[351344938,1738525071543,258.27,7.818e-05,2]
[351344939,1738525092749,-161.81,8.412e-05,2]
[351344940,1738525092775,-161.81,8.422e-05,2]
[351344941,1738525092799,-161.81,8.433e-05,2]
[351344942,1738525092821,-161.81,8.443e-05,2]
[351344943,1738525092846,-161.81,8.454e-05,2]
[351344944,1738525092884,-5504.70467116,8.454e-05,2]
[351344945,1738525092909,-214.49439467,8.5e-05,2]
[351344946,1738525098652,169.8,8.219e-05,2]
[351344947,1738525133263,-250.0,8.5e-05,2]
[351344948,1738525133285,-1513.29,8.545e-05,2]
[351344949,1738525133306,-214.49439465,8.552e-05,2]
[351344950,1738525133327,-2821.19,8.552e-05,2]
[351344951,1738525133348,-201.02560535,8.552e-05,2]
[351344952,1738525151790,214.539464,8.044e-05,2]
[351344953,1738525151814,1285.460536,8.044e-05,2]
[351344954,1738525171497,150.0,0.00021707,120]
[351344956,1738525196076,165.86,8.044e-05,2]
[351344957,1738525230775,150.0,0.000224,120]
[351344958,1738525290740,150.0,0.00022462,120]
[351344960,1738525344081,1516.54,8.219e-05,2]
[351344961,1738525350755,150.0,0.00022223,120]
[351344963,1738525395786,500.0,0.00022953,120]
[351344964,1738525401153,500.0,0.00022953,120]
[351344965,1738525413069,200.0,0.00022953,120]
[351344966,1738525420263,2000.0,8.02e-05,2]
[351344967,1738525436423,1021.92,8.085e-05,2]
[351344968,1738525470771,150.0,0.00022806,120]
[351344969,1738525482154,200.0,8.009e-05,2]
[351344970,1738525497180,3810.219464,7.982e-05,2]
[351344971,1738525497202,7949.090536,7.982e-05,2]
[351344972,1738525541132,-300.0,8.538e-05,2]
[351344973,1738525541155,-43.47488663,8.539e-05,2]
[351344974,1738525551159,-1438.6466205,8.539e-05,2]
[351344975,1738525554377,2050.909464,8.03e-05,2]
[351344976,1738525554400,6051.760536,8.03e-05,2]
[351344977,1738525605648,1394.35,8.092e-05,2]
[351344978,1738525617147,-234.47204003,8.539e-05,2]
[351344979,1738525627094,-300.0,8.538e-05,2]
[351344980,1738525627118,-218.63565815,8.539e-05,2]
[351344981,1738525631136,-397.81360059,8.539e-05,2]
[351344982,1738525634138,-4452.47295857,8.539e-05,2]
[351344983,1738525636117,-2222.28878605,8.539e-05,2]
[351344984,1738525638141,-5095.49520886,8.539e-05,2]
[351344985,1738525649128,-764.89681721,8.539e-05,2]
[351344986,1738525652094,-730.17289044,8.539e-05,2]
[351344987,1738525661653,250.0,8.219e-05,2]
[351344988,1738525678590,1000.0,8.219e-05,2]
[351344989,1738525681299,300.0,8.538e-05,2]
[351344990,1738525725524,218.46,8.136e-05,2]
[351344991,1738525741873,300.0,8.538e-05,2]
[351344992,1738525751093,-2009.06076,8.539e-05,2]
[351344993,1738525760110,-1579.97514524,8.539e-05,2]
[351344994,1738525772091,-7265.45787385,8.539e-05,2]
[351344995,1738525773132,-637.13675388,8.539e-05,2]
[351344996,1738525773154,-214.49439465,8.551e-05,2]
[351344997,1738525773176,-150.0,8.575e-05,2]
[351344998,1738525773197,-1455.58780288,8.599e-05,2]
[351345000,1738525832119,-300.0,8.598e-05,2]
[351345001,1738525832129,-3179.69619712,8.599e-05,2]
[351345002,1738525832138,-231.754,8.599e-05,2]
[351345003,1738525832148,-150.0,8.599e-05,2]
[351345004,1738525832157,-2420.70484039,8.6e-05,2]
[351345005,1738525832284,-57.62645557,8.6e-05,2]
[351345006,1738525832303,-55807.70750404,8.6e-05,2]
[351345007,1738525832313,-188.32,8.601e-05,2]
[351345008,1738525832321,-1227.0,8.603e-05,2]
[351345009,1738525832330,-30338.9789,8.7e-05,2]
[351345010,1738525832338,-156.31,8.7e-05,2]
[351345011,1738525832346,-600.67,8.7e-05,2]
[351345012,1738525832356,-5381.3,8.767e-05,2]
[351345013,1738525832365,-150.99,8.767e-05,2]
[351345014,1738525832375,-742.15,8.767e-05,2]
[351345015,1738525832384,-150.99,8.767e-05,2]
[351345016,1738525832394,-9999.99,8.767e-05,2]
[351345017,1738525832403,-506.66884179,8.773e-05,2]
[351345018,1738525832413,-500.0,8.773e-05,2]
[351345019,1738525832424,-663.1298011,8.799e-05,2]
[351345020,1738525832436,-500.0,8.799e-05,2]
[351345021,1738525832445,-483.58342973,8.799e-05,2]
[351345022,1738525832455,-500.0,8.799e-05,2]
[351345023,1738525832464,-179.74205004,8.799e-05,2]
[351345024,1738525832474,-635.33526114,8.799e-05,2]
[351345025,1738525832484,-250.25423026,8.799e-05,2]
[351345026,1738525832493,-500.0,8.799e-05,2]
[351345027,1738525832502,-200.09273841,8.799e-05,2]
[351345028,1738525832517,-183.8536161,8.799e-05,2]
[351345029,1738525832526,-235.45078285,8.799e-05,2]
[351345030,1738525832535,-720.06,8.799e-05,2]
[351345031,1738525832545,-393202.96038182,8.8e-05,2]
[351345032,1738525832557,-69911.71157488,8.8e-05,2]
[351345033,1738525832580,-57683.59999984,8.8e-05,2]
[351345034,1738525832592,-379.74340875,8.8e-05,2]
[351345035,1738525832642,-2161.39843761,8.8e-05,2]
[351345036,1738525832653,-285270.346977,8.8e-05,2]
[351345038,1738525832664,-3049.99998966,8.8e-05,2]
[351345040,1738525832675,-9830.7,8.8e-05,2]
[351345042,1738525832686,-979.654975,8.8e-05,2]
[351345044,1738525832697,-1104.11597771,8.8e-05,2]
[351345048,1738525832724,-49763.01768877,8.8e-05,2]
[351345335,1738525838148,-500.0,8.74e-05,2]
[351345337,1738525838158,-40275.9895952,8.8e-05,2]
[351345341,1738525838185,-2892.98793073,8.8e-05,2]
[351345343,1738525838197,-1691.56259729,8.8e-05,2]
[351345345,1738525838210,-32117.5816428,8.8e-05,2]
[351345348,1738525838223,-20613.6264,8.8e-05,2]
[351345356,1738525838297,-9804.5,8.8e-05,2]
[351345357,1738525838310,-36099407.64444775,8.8e-05,2]
[351345358,1738525838321,-3147766.72733495,8.8e-05,2]
[351345360,1738525838334,-1025.4,8.8e-05,2]
[351345361,1738525838346,-283727.30354068,8.8e-05,2]
[351345362,1738525838383,-20532.31199999,8.8e-05,2]
[351345363,1738525838396,-114090.0,8.8e-05,2]
[351345364,1738525838445,-294.25346188,8.8e-05,2]
[351345425,1738525839385,-5457.24485575,8.8e-05,2]
[351345427,1738525839397,-876.93134067,8.8e-05,2]
[351345429,1738525839408,-67495.22774147,8.8e-05,2]
[351345431,1738525839420,-45912.08606279,8.8e-05,2]
[351345441,1738525839508,-44.20169182,8.8e-05,2]
[351345469,1738525839780,-494.72107165,8.8e-05,2]
[351345593,1738525840454,-421.959,8.8e-05,2]
[351345596,1738525840467,-310854.581,8.8e-05,2]
[351345603,1738525840497,-1082.31218453,8.8e-05,2]
[351345612,1738525840532,-81.13032122,8.8e-05,2]
[351345619,1738525840569,-1964.24,8.8e-05,2]
[351345629,1738525840614,-346.02250741,8.8e-05,2]
[351345632,1738525840625,-6406.4,8.8e-05,2]
[351345636,1738525840635,-1051.44138697,8.8e-05,2]
[351345639,1738525840646,-252.89249061,8.8e-05,2]
[351345643,1738525840656,-442.845,8.8e-05,2]
[351345648,1738525840674,-3165.3,8.8e-05,2]
[351345652,1738525840685,-1710.942436,8.8e-05,2]
[351345655,1738525840695,-1136.2383684,8.8e-05,2]
[351345658,1738525840704,-832.15632504,8.8e-05,2]
[351345670,1738525840760,-1026.13715,8.8e-05,2]
[351345673,1738525840772,-314.94702755,8.8e-05,2]
[351345676,1738525840783,-609.5,8.8e-05,2]
[351345682,1738525840803,-2532.06250847,8.8e-05,2]
[351345685,1738525840815,-6029.48000006,8.8e-05,2]
[351345688,1738525840827,-658.31999988,8.8e-05,2]
[351345691,1738525840839,-341.14300191,8.8e-05,2]
[351345693,1738525840851,-735.64192626,8.8e-05,2]
[351345696,1738525840863,-682.6158274,8.8e-05,2]
[351345698,1738525840876,-573.32806682,8.8e-05,2]
[351345700,1738525840888,-11118.50984221,8.8e-05,2]
[351345728,1738525841371,-4898.84795736,8.8e-05,2]
[351345799,1738525844722,-488.27338981,8.8e-05,2]
[351345800,1738525844779,-247532.56842647,8.8e-05,2]
[351345801,1738525844792,-1580.6777697,8.8e-05,2]
[351345802,1738525844803,-127257.43375675,8.8e-05,2]
[351345803,1738525844837,-1555.88255727,8.8e-05,2]
[351345804,1738525844924,-2318411.25362431,8.8e-05,2]
[351345805,1738525844934,-524584.31178725,8.8e-05,2]
[351345806,1738525844946,-1853746.7507124,8.8e-05,2]
[351345807,1738525844959,-5346051.99837867,8.8e-05,2]
[351345808,1738525844970,-924.25848718,8.8e-05,2]
[351345809,1738525845000,-26.05244886,8.8e-05,2]
[351345810,1738525845022,-1172.41058247,8.8e-05,2]
[351345811,1738525845034,-4933.52847109,8.8e-05,2]
[351345812,1738525845076,-653.550005,8.8e-05,2]
[351345814,1738525845140,-2312.4955002,8.8e-05,2]
[351345816,1738525845152,-3323.52034028,8.8e-05,2]
[351345817,1738525845166,-3589.31857001,8.8e-05,2]
[351345818,1738525845177,-7102.577308,8.8e-05,2]
[351345835,1738525846190,-699.7546623,8.8e-05,2]
[351345836,1738525846202,-4379.13649205,8.8e-05,2]
[351345837,1738525846214,-11239.1716,8.8e-05,2]
[351345838,1738525846248,-551.58542842,8.8e-05,2]
[351345839,1738525846281,-59.45301995,8.8e-05,2]
[351345840,1738525846293,-104440.88748661,8.8e-05,2]
[351345841,1738525846363,-84.98853519,8.8e-05,2]
[351345842,1738525846374,-745.21525001,8.8e-05,2]
[351345843,1738525846385,-1316.77996624,8.8e-05,2]
[351345844,1738525846507,-181.94400839,8.8e-05,2]
[351345845,1738525846522,-981873.75851369,8.8e-05,2]
[351345846,1738525846533,-43108.53195791,8.8e-05,2]
[351345847,1738525846569,-39542.71718832,8.8e-05,2]
[351345848,1738525846580,-15395.96778512,8.8e-05,2]
[351345849,1738525846619,-276.17409234,8.8e-05,2]
[351345850,1738525895540,758.47,0.00016658,30]
[351345854,1738525952650,375.8480471,0.00023,120]
[351345855,1738525992351,166.37,8.444e-05,2]
[351345856,1738525994248,500.0,0.0002298,120]
[351345857,1738525995536,519.77,8.511e-05,2]
[351345858,1738526000015,454.583559,0.0002298,120]
[351345859,1738526003707,5245.4,8.439e-05,2]
[351345860,1738526009159,97638.0,0.00023,120]
[351345861,1738526012956,200.0,0.0002298,120]
[351345862,1738526056728,23243.0,0.00023,120]
[351345864,1738526088915,198.82,8.135e-05,2]
[351345867,1738526267913,1962.04,8.168e-05,2]
[351345869,1738526277777,150.0,0.0001705,30]
[351345870,1738526287373,393.029464,8.194e-05,2]
[351345871,1738526287398,389.430536,8.194e-05,2]
[351345873,1738526384203,1567.77,8.219e-05,2]
[351345874,1738526400382,1284.37,8.109e-05,2]
[351345875,1738526534514,200.0,8.124e-05,2]
[351345876,1738526564329,1000.0,8.219e-05,2]
[351345877,1738526594858,500.0,0.0002298,120]
[351345878,1738526612427,200.0,0.0002298,120]
[351345879,1738526616181,14165.0,0.0001,10]
[351345880,1738526640118,157.06,8.088e-05,2]
[351345881,1738526640343,157.06,8.092e-05,2]
[351345882,1738526640547,157.06,8.096e-05,2]
[351345883,1738526640801,157.06,8.099e-05,2]
[351345884,1738526640991,157.06,8.103e-05,2]
[351345885,1738526641231,157.06,8.107e-05,2]
[351345886,1738526641469,157.06,8.11e-05,2]
[351345887,1738526642040,157.06,8.114e-05,2]
[351345888,1738526642127,157.06,8.118e-05,2]
[351345889,1738526642216,157.06,8.121e-05,2]
[351345890,1738526642348,157.06,8.125e-05,2]
[351345891,1738526642565,157.06,8.129e-05,2]
[351345892,1738526665142,1052.89157515,0.0001705,30]
[351345893,1738526714366,1513.36,8.219e-05,2]
[351345894,1738526735305,250.0,8.219e-05,2]
[351345895,1738526750062,720.54,0.00016658,30]
[351345896,1738526844905,169.8,8.219e-05,2]
[351345897,1738526845218,-156.03,8.369e-05,2]
[351345898,1738526845239,-103.24163092,8.438e-05,2]
[351345899,1738526890860,1740.549464,8.078e-05,2]
[351345900,1738526890887,10000.0,8.078e-05,2]
[351345901,1738526890909,10000.0,8.078e-05,2]
[351345902,1738526890930,2159.450536,8.078e-05,2]
[351345903,1738526945095,-169.3,8.351e-05,2]
[351345904,1738526945116,-114.84814663,8.441e-05,2]
[351345905,1738526959103,-61.96185337,8.441e-05,2]
[351345906,1738526959124,-188.32,8.645e-05,2]
[351345907,1738526959146,-2977.00325861,8.645e-05,2]
[351345908,1738526962104,-519.83685836,8.645e-05,2]
[351345909,1738526970100,-162.54065055,8.645e-05,2]
[351345910,1738526973179,-652.94217624,8.645e-05,2]
[351345920,1738527032286,-163.69948666,8.602e-05,2]
[351345921,1738527032296,-263.72377186,8.645e-05,2]
[351345922,1738527032305,-6572.6929,8.7e-05,2]
[351345923,1738527032315,-289.78,8.7e-05,2]
[351345924,1738527032324,-1743.28944931,8.7e-05,2]
[351345925,1738527032335,-263.72377185,8.723e-05,2]
[351345926,1738527032346,-506.0,8.74e-05,2]
[351345927,1738527032362,-2399.96,8.767e-05,2]
[351345928,1738527032375,-500.0,8.773e-05,2]
[351345929,1738527032387,-1395.1,8.795e-05,2]
[351345930,1738527032398,-878.38,8.795e-05,2]
[351345931,1738527032413,-151.78,8.795e-05,2]
[351345932,1738527032423,-303.74,8.795e-05,2]
[351345933,1738527032434,-298.51,8.795e-05,2]
[351345934,1738527032444,-298.51,8.795e-05,2]
[351345935,1738527032454,-295.29,8.795e-05,2]
[351345936,1738527032463,-150.0,8.798e-05,2]
[351345937,1738527032473,-500.0,8.799e-05,2]
[351345938,1738527032487,-632.57283366,8.799e-05,2]
[351345939,1738527032498,-222.29755562,8.799e-05,2]
[351345940,1738527032509,-543.17427219,8.799e-05,2]
[351345941,1738527032518,-500.0,8.799e-05,2]
[351345942,1738527032527,-429.25221805,8.799e-05,2]
[351345943,1738527032537,-500.0,8.799e-05,2]
[351345944,1738527032547,-348.42561316,8.799e-05,2]
[351345945,1738527032556,-261.8888,8.799e-05,2]